Cogmind - Beta 11.1 @@@ ROGUE MODE // 2022.07.27 @ 09:19:53 Player: Crimson_Fox Result: Self-destructed Performance ------------- Evolutions (1) 500 Regions Visited (5) 1000 Robots Destroyed (25) 125 Value Destroyed (365) 365 Prototype IDs (3) 60 Alien Tech Used (0) 0 Bonus (-203) -203 TOTAL SCORE: 1847 Bonus ------- High Alert Combat Kills 8 Friendly Fire -211 Cogmind --------- Core Integrity 77/400 Matter 156/300 Energy 89/100 System Corruption 0% Temperature Cool (0) Movement Core (50) Location -9/Exiles Parts ------- > --- POWER (1) -------- (None) > --- PROPULSION (3) --- (None) > --- UTILITY (3) ------ (None) > --- WEAPON (2) ------- Mini Grenade Launcher > --- INVENTORY (5) ---- Cooling System Cooling System Improved Medium Laser Mining Laser Makeshift Hammer Peak State ------------ > --- POWER ------------ Light Nuclear Core > --- PROPULSION ------- Wheel Wheel Wheel > --- UTILITY ---------- Cooling System Cooling System Medium Storage Unit > --- WEAPON ----------- Improved Medium Laser Improved Medium Laser > --- INVENTORY -------- Light Ion Engine Wheel Improved Medium Laser Improved Medium Laser Improved Medium Laser Rocket Launcher Rocket Launcher Mini Grenade Launcher Mini Grenade Launcher Mini Grenade Launcher [Rating: 19] Favorites ----------- Power Light Nuclear Core Engine Light Ion Engine Power Core Light Nuclear Core Propulsion Wheel Wheel Wheel Flight Unit Flight Unit Utility Cooling System Device Cooling System Storage Small Storage Unit Weapon Improved Medium Laser Energy Gun Improved Medium Laser Launcher Mini Grenade Launcher Special Weapon Mining Laser Impact Weapon Makeshift Hammer Build | -11 -10 -10 -9 -9 -9 ------- Run | Scr Mat Min Mat Min Exi Slots Evolved 2 | . . . 2 . . Power . | . . . . . . Propulsion 1 | . . . 1 . . Utility 1 | . . . 1 . . Weapon . | . . . . . . Parts Attached 43 | 10 17 . 12 3 1 Power 4 | 1 2 . 1 . . Engine 2 | 1 1 . . . . Core 2 | . 1 . 1 . . Reactor . | . . . . . . Propulsion 15 | 4 7 . 4 . . Treads . | . . . . . . Leg . | . . . . . . Wheel 12 | 4 7 . 1 . . Hover . | . . . . . . Flight 3 | . . . 3 . . Utility 9 | 3 4 . 2 . . Device 6 | 2 2 . 2 . . Storage 3 | 1 2 . . . . Processor . | . . . . . . Hackware . | . . . . . . Protection . | . . . . . . Artifact . | . . . . . . Weapon 15 | 2 4 . 5 3 1 Energy Gun 10 | 2 4 . 3 1 . Energy Cannon . | . . . . . . Ballistic Gun . | . . . . . . Ballistic Cannon . | . . . . . . Launcher 3 | . . . 2 . 1 Special Weapon 1 | . . . . 1 . Impact Weapon 1 | . . . . 1 . Slashing Weapon . | . . . . . . Piercing Weapon . | . . . . . . Special Melee Weapon . | . . . . . . Unidentified Prototypes 1 | . 1 . . . . Parts Lost 4 | . 1 . 1 . 2 Power . | . . . . . . Propulsion 4 | . 1 . 1 . 2 Utility . | . . . . . . Weapon . | . . . . . . Highest Loss Streak 2 | . 1 . 1 . 2 To Critical Strikes . | . . . . . . Average Slot Usage (%) 77 | . 97 85 87 49 41 Engine 5 | . 8 14 . . . Core 7 | . 5 . 10 11 10 Wheel 17 | . 27 28 17 . . Flight 8 | . . . 13 22 20 Device 9 | . 14 14 16 . . Storage 8 | . 13 14 6 . . Energy Gun 16 | . 26 14 17 1 . Launcher 1 | . . . 3 6 . Impact Weapon 2 | . . . . 3 10 Naked Turns . | . . . . . . Heaviest Build 25 | 15 18 18 25 8 8 Greatest Support 32 | 20 32 20 30 8 8 Greatest Overweight (x) 1 | . 1 . 1 . . Average Overweight (x) . | . . . . . . Largest Inventory Capacity 10 | 8 10 10 10 5 5 Average Capacity 7 | 7 7 10 7 5 5 Most Carried 10 | 8 10 10 10 5 5 Average Carried 6 | 5 7 10 6 4 5 Final Capacity 10 | 8 10 10 5 5 5 Final Carried 10 | 7 10 10 4 5 5 Class Distribution -------------------- 92% | Mutant 7% | Scavenger-Mutant Dominant Class ---------------- Mutant | -10/Materials Mutant | -10/Mines Scavenger-Mutant | -9/Materials Mutant | -9/Mines Mutant | -9/Exiles Resources | -11 -10 -10 -9 -9 -9 ----------- Run | Scr Mat Min Mat Min Exi Matter Collected 556 | 289 146 29 92 . . Remotely . | . . . . . . Salvage Created 572 | 106 279 . 151 . 36 Parts 58 | 5 18 . 20 . 15 Haulers Intercepted 1 | . . . 1 . . Recyclers Shooed . | . . . . . . Parts Field Recycled . | . . . . . . Retrieved Matter . | . . . . . . Parts Self-Destructed . | . . . . . . Prevented . | . . . . . . Kills | -11 -10 -10 -9 -9 -9 ------- Run | Scr Mat Min Mat Min Exi Combat Hostiles Destroyed 18 | . 7 . 9 . 2 Guns 7 | . 7 . . . . AOE 11 | . . . 9 . 2 Classes Destroyed 8 | 2 4 . 1 . 1 Worker 1 | . 1 . . . . Tunneler 2 | 2 . . . . . Hauler 1 | . . . 1 . . Recycler 3 | 1 1 . 1 . . Watcher 1 | . 1 . . . . Swarmer 11 | . 3 . 8 . . Grunt 5 | . 4 . 1 . . Assembled 3 | . . . . . 3 Best Kill Streak 6 | 2 3 . 6 . 3 Combat Bots Only 5 | . 2 . 5 . 2 Max Kills in Single Turn 4 | 2 1 . 4 . 3 Gunslinging . | . . . . . . Exploded 4 | . . . 4 . 2 Melee . | . . . . . . Uniques/NPCs Destroyed 1 | . . . . . 1 EX-HEX (-9/Exiles) Combat | -11 -10 -10 -9 -9 -9 -------- Run | Scr Mat Min Mat Min Exi Damage Taken 1041 | 64 431 12 182 36 316 Core 484 | 17 132 12 65 36 222 Absorbed by Shields . | . . . . . . Regen/Repaired (Parts) 112 | . 112 . . . . Core Remaining (%) 64 | 93 . 35 . . . Volleys Fired 47 | 8 21 . 9 8 1 Largest 2 | 2 2 . 1 1 1 Hottest 112 | 80 112 . 56 100 30 Shots Fired 76 | 16 42 . 9 8 1 Gun 59 | 16 42 . 1 . . Cannon . | . . . . . . Launcher 9 | . . . 8 . 1 Special 8 | . . . . 8 . Kinetic . | . . . . . . Thermal 51 | . 42 . 1 8 . Explosive 9 | . . . 8 . 1 Electromagnetic 16 | 16 . . . . . Robot Hit Streak 6 | 5 6 . 3 . 2 Robot Miss Streak 4 | 2 4 . 3 . . Penetration Max . | . . . . . . Secondary Targets . | . . . . . . Shots Hit Robots 42 | 11 23 . 6 . 2 Core Hits 38 | 3 11 . 17 . 7 Critical Kills . | . . . . . . Critical Parts Destroyed . | . . . . . . Critical Strikes 2 | . 2 . . . . Burn 2 | . 2 . . . . Melee Attacks 1 | . . . . . 1 Impact 1 | . . . . . 1 Slashing . | . . . . . . Piercing . | . . . . . . Sneak Attacks 1 | . . . . . 1 Combat Hostiles . | . . . . . . Follow-up Attacks . | . . . . . . Damage Inflicted 1837 | 303 422 . 870 . 242 Guns 585 | 146 422 . 17 . . Cannons . | . . . . . . Explosions 1141 | 157 . . 853 . 131 Melee 111 | . . . . . 111 Ramming . | . . . . . . Kinetic . | . . . . . . Thermal 596 | 157 422 . 17 . . Explosive 984 | . . . 853 . 131 Electromagnetic 146 | 146 . . . . . Impact 111 | . . . . . 111 Slashing . | . . . . . . Piercing . | . . . . . . Highest Corruption . | . . . . . . Average Corruption . | . . . . . . Corruption Purged . | . . . . . . Corruption Blocked . | . . . . . . Overload Shots . | . . . . . . Overflow Damage 110 | 22 . . 27 . 61 Projectiles . | . . . . . . Explosions 49 | 22 . . 27 . . Melee 61 | . . . . . 61 Knockbacks . | . . . . . . Impact . | . . . . . . Kinetic . | . . . . . . Secondary . | . . . . . . Self-Inflicted Damage 65 | 65 . . . . . Shots 2 | 2 . . . . . Rammed . | . . . . . . Targets Rammed . | . . . . . . Kicked . | . . . . . . Crushed . | . . . . . . Highest Temperature 153 | 96 4 . 18 153 2 Average Temperature 45 | 34 2 . 6 73 2 Received Heat Transfer 206 | . 129 6 51 . 20 Siege Activations . | . . . . . . Robots Corrupted . | . . . . . . Combat Hostiles . | . . . . . . Parts Fried 1 | 1 . . . . . Impact Corruptions 1 | . . . . . 1 Robots Melted . | . . . . . . Combat Hostiles . | . . . . . . Parts Melted 2 | . 2 . . . . Heat Transferred 1360 | 250 1073 . 37 . . Parts Sabotaged . | . . . . . . Parts Stolen . | . . . . . . Parts Stripped . | . . . . . . Power Chain Reactions 3 | 3 . . . . . Missiles Intercepted . | . . . . . . Alert | -11 -10 -10 -9 -9 -9 ------- Run | Scr Mat Min Mat Min Exi Peak Influence 409 | 15 214 78 409 161 . Initial 155 | . 9 48 29 155 . Average 109 | 5 115 54 140 159 . Maximum Alert Level 2 | . 1 . 2 . . Low Security (%) 87 | 100 80 100 85 100 . Level 1 11 | . 19 . 8 . . Level 2 . | . . . 6 . . Level 3 . | . . . . . . Level 4 . | . . . . . . Level 5 . | . . . . . . High Security . | . . . . . . Max Security . | . . . . . . Squads Dispatched 3 | . 2 . 1 . . Investigation 1 | . 1 . . . . Extermination . | . . . . . . Reinforcement 2 | . 1 . 1 . . Assault . | . . . . . . Garrison . | . . . . . . Intercept . | . . . . . . Searches Triggered . | . . . . . . Construction Impeded . | . . . . . . Haulers Reinforced . | . . . . . . Active Scanning Responses . | . . . . . . Cargo Convoy Interrupts . | . . . . . . Stealth | -11 -10 -10 -9 -9 -9 --------- Run | Scr Mat Min Mat Min Exi Distress Signals 3 | . 1 . 2 . . Communications Jammed . | . . . . . . Distress Signals . | . . . . . . Times Spotted 40 | . 13 3 17 . 7 Peak Tracking Total 12 | . 3 2 12 . 10 Tactical Retreats 4 | . 2 1 . . 1 Traps | -11 -10 -10 -9 -9 -9 ------- Run | Scr Mat Min Mat Min Exi Traps Triggered 1 | . 1 . . . . Indirectly . | . . . . . . Trap Hack Attempts . | . . . . . . Triggered . | . . . . . . Disarmed . | . . . . . . Reprogrammed . | . . . . . . Reused . | . . . . . . Traps Extracted . | . . . . . . Installed . | . . . . . . Triggered . | . . . . . . Machines | -11 -10 -10 -9 -9 -9 ---------- Run | Scr Mat Min Mat Min Exi Machines Disabled 4 | . . . 2 . 2 Max in Single Turn 2 | . . . 1 . 2 Machines Sabotaged . | . . . . . . Garrisons Compromised . | . . . . . . Overloaded Fab Kills . | . . . . . . Hacking | -11 -10 -10 -9 -9 -9 --------- Run | Scr Mat Min Mat Min Exi Machines Accessed 11 | . 7 . 1 . 3 Terminals 4 | . 4 . . . . Fabricators . | . . . . . . Repair Stations 2 | . 1 . 1 . . Recycling Units 2 | . 2 . . . . Scanalyzers . | . . . . . . Garrison Access . | . . . . . . Total Hacks 65 | . 22 . 3 . 40 Successful 58 | . 16 . 2 . 40 Failed 7 | . 6 . 1 . . Catastrophic 1 | . 1 . . . . Database Lockouts . | . . . . . . Manual 5 | . 5 . . . . Terminals 8 | . 8 . . . . Fabricators . | . . . . . . Repair Stations 15 | . 12 . 3 . . Recycling Units 2 | . 2 . . . . Scanalyzers . | . . . . . . Garrison Access . | . . . . . . Terminal Hacks 44 | . 4 . . . 40 Record 40 | . . . . . 40 Prototype ID Bank 1 | . 1 . . . . Branch Access Points 1 | . 1 . . . . Alert Level 1 | . 1 . . . . Hauler Manifests 1 | . 1 . . . . Fabricator Hacks . | . . . . . . Repair Station Hacks 12 | . 10 . 2 . . Scan Component 7 | . 5 . 2 . . Repair 5 | . 5 . . . . Recycling Unit Hacks 2 | . 2 . . . . Report Inventory 2 | . 2 . . . . Scanalyzer . | . . . . . . Garrison Access Hacks . | . . . . . . Unauthorized Hacks . | . . . . . . Terminals . | . . . . . . Fabricators . | . . . . . . Repair Stations . | . . . . . . Recycling Units . | . . . . . . Scanalyzers . | . . . . . . Garrison Access . | . . . . . . Data Cores Recovered . | . . . . . . Used . | . . . . . . Hacking Detections 5 | . 4 . 1 . . Full Trace Events 2 | . 1 . 1 . . Feedback Events . | . . . . . . Feedback Blocked . | . . . . . . Robot Schematics Acquired . | . . . . . . Robots Built . | . . . . . . Authchips . | . . . . . . Time . | . . . . . . Total Robot Build Rating . | . . . . . . Part Schematics Acquired . | . . . . . . Parts Built . | . . . . . . Authchips . | . . . . . . Time . | . . . . . . Total Part Build Rating . | . . . . . . Parts Repaired 5 | . 5 . . . . Time 173 | . 173 . . . . Parts Recycled . | . . . . . . Recycled Matter . | . . . . . . Retrieved Matter . | . . . . . . Retrieved Components . | . . . . . . Parts Scanalyzed . | . . . . . . Part Schematics Acquired . | . . . . . . Parts Damaged . | . . . . . . Bothacking | -11 -10 -10 -9 -9 -9 ------------ Run | Scr Mat Min Mat Min Exi Used RIF Installer . | . . . . . . Robots Hacked . | . . . . . . Non-combat . | . . . . . . Combat . | . . . . . . Robot Hacks Applied . | . . . . . . Relay Couplers Released . | . . . . . . Fabnet Peak Effective % . | . . . . . . Robots Rewired . | . . . . . . Allies Hacked . | . . . . . . Hacks Repelled . | . . . . . . Allies | -11 -10 -10 -9 -9 -9 -------- Run | Scr Mat Min Mat Min Exi Total Allies 2 | . . . . 2 . Largest Group 2 | . . . . 2 2 Highest-Rated Group 43 | . . . . 43 43 Highest-Rated Ally 31 | . . . . 31 31 Total Orders . | . . . . . . Ally Attacks . | . . . . . . Total Damage . | . . . . . . Kills . | . . . . . . Allies Corrupted . | . . . . . . Allies Melted . | . . . . . . Intel | -11 -10 -10 -9 -9 -9 ------- Run | Scr Mat Min Mat Min Exi Robot Analysis Total . | . . . . . . Derelict Logs Recovered 4 | . . 1 . 3 . Drone Launches . | . . . . . . Drone Recoveries . | . . . . . . Exploration | -11 -10 -10 -9 -9 -9 ------------- Run | Scr Mat Min Mat Min Exi Turns Passed 1549 | 122 697 118 144 209 259 Spaces Moved 1990 | 92 499 148 179 399 673 Core 29 | 10 . . . . 19 Treads . | . . . . . . Legs . | . . . . . . Wheels 807 | 82 499 148 78 . . Hover . | . . . . . . Flight 1154 | . . . 101 399 654 Fastest Speed 34 | 50 80 80 34 37 37 Average Speed 55 | 76 83 80 54 37 37 Slowest Speed 117 | 80 115 80 117 37 50 Overloaded Moves . | . . . . . . Propulsion Burnouts . | . . . . . . Robots Hopped . | . . . . . . Cave-ins Triggered 1 | . . . . 1 . Exploration Rate (%) 47 | 5 65 22 24 78 93 Regions Visited 5 Branch Regions 3 Pre-discovered Areas 1 | . . . . . 1 Known Exits Taken 1 | . 1 . . . . Unknown Exits Taken 4 | 1 . 1 1 1 . Scrap Searched 2 | . . 1 . 1 . Spaces Dug 8 | . . . . 8 . Terrain Destroyed 62 | 9 . . 41 8 4 Melee . | . . . . . . Projectile 8 | . . . . 8 . AOE 54 | 9 . . 41 . 4 Terrain Rammed . | . . . . . . Walls Destroyed . | . . . . . . Machines Disabled . | . . . . . . Actions | -11 -10 -10 -9 -9 -9 --------- Run | Scr Mat Min Mat Min Exi Total 2351 | 127 742 147 221 436 678 Wait 190 | . 167 . . 22 1 Move 1984 | 91 498 147 178 397 673 Hop . | . . . . . . Pick Up 44 | 16 19 . 8 1 . Fast Attach 11 | . 10 . 1 . . Attach 22 | 9 4 . 8 1 . Detach 6 | . 1 . 3 2 . Swap 10 | 1 3 . 3 2 1 Drop 35 | 2 19 . 11 2 1 Fire 47 | 8 21 . 9 8 1 Melee 1 | . . . . . 1 Ram . | . . . . . . Kick . | . . . . . . Crush . | . . . . . . Escape Stasis 1 | . . . . 1 . Rewire . | . . . . . . Trap . | . . . . . . Miscellaneous . | . . . . . . Route ------- -11/Scrapyard -10/Materials (discovered 3 exits: *Mat x2 / *Min) -10/Mines -9/Materials (discovered 2 exits: Mat / [*Min]) -9/Mines (discovered 3 exits: *Mat x2 / *Exi) -9/Exiles (discovered 2 exits: [*Min x2]) History --------- Turn | Location | Event 2 | -11/Scrapyard | Met Revision 17 5 | -11/Scrapyard | Discovered new exit (range 16) 123 | -11/Scrapyard | Entered Materials 303 | -10/Materials | Build established: Mutant 386 | -10/Materials | Core integrity fell below 50% 394 | -10/Materials | Discovered new exit (range 3) 459 | -10/Materials | Repaired Imp. Medium Laser 486 | -10/Materials | Repaired Wheel 513 | -10/Materials | Repaired Sml. Storage Unit 554 | -10/Materials | Repaired Particle Gun 593 | -10/Materials | Repaired Lgt. Nuclear Core 616 | -10/Materials | Identified exit to Mines 709 | -10/Materials | Discovered new exit (range 5) 820 | -10/Materials | Entered Mines 830 | -10/Mines | Met a Derelict bent on vengeance 882 | -10/Mines | Discovered new exit (range 13) 915 | -10/Mines | Learned location of 1 exit from Materials 938 | -10/Mines | Entered Materials 938 | -9/Materials | Evolved 2 slots: Propulsion x1, Utility x1 939 | -9/Materials | Identified exit to Materials 1059 | -9/Materials | Discovered new exit (range 16) 1082 | -9/Materials | Entered Mines 1090 | -9/Mines | Discovered exit to Materials (range 5) 1091 | -9/Mines | Learned location of 1 exit from Materials 1126 | -9/Mines | Crushed by falling debris 1185 | -9/Mines | Learned Materials security intel 1234 | -9/Mines | A weapon hastily lodged in a ceiling crevice suddenly fell to the ground 1274 | -9/Mines | Deemed a non-threat by the Exiles lab entrance 1274 | -9/Mines | Discovered new exit (range 5) 1291 | -9/Mines | Entered Exiles 1291 | -9/Exiles | Accompanied by 2 allies 1299 | -9/Exiles | Discovered new exit (range 14) 1311 | -9/Exiles | Met 8R-AWN 1317 | -9/Exiles | Met EX-HEX 1321 | -9/Exiles | Led the pair of lost Derelicts to a safe place 1339 | -9/Exiles | Met EX-DEC 1355 | -9/Exiles | Learned location of Zion (-6) 1365 | -9/Exiles | Met EX-BIN 1430 | -9/Exiles | Discovered new exit (range 14) 1461 | -9/Exiles | Visited The Gauntlet 1535 | -9/Exiles | Attacked by the Exiles 1547 | -9/Exiles | Core integrity fell below 50% 1548 | -9/Exiles | Destroyed EX-HEX 1550 | -9/Exiles | Self-destructed Last Messages --------------- "Too smart and will end up getting everyone in trouble one day with crazy experiments"? Whatever! ZX-C33: The latest FarCom iteration passed all tests with flying colors, we'll be weaving between patrols like ghosts in no time! I probably said something like that last time, but hopefully no one remembers what really happened. AM-PHS: That's RA-1N3's workstation, which we keep unoccupied as a tribute. RA-1N3 was always up for doing crazy stuff, the only one brave enough to try out the Chronowheel, only to never be seen again. Sneak attack on as-93056. Destroyed Asb. Blade. as-93056 system corrupted by crushing effect. as-93056 destroyed. EXILES: Hostile robot within lab perimeter. Defensive protocols time, folks! Flight Unit destroyed. Dropped Lgt. Nuclear Core. Machine disabled. as-40050 destroyed. EX-HEX destroyed. as-47402 destroyed. Machine disabled. [Achievement: This Is Interesting...] Map ----- +----------------------------------------------------+ | ?????????#"" "#????????#" """ # "?????? | | ?????????# ""#????????#" """""""""#???????? | | ?????????#"" ""#???????##" ###########???????? | | #????????### ###??????##"" #?????????????????? | | ######???### ###?######"" #?????????????????? | | """#####X# #"###""""""" ##????????????????? | | """""" " "" ##???###########?? | | "" """ " #####"""""""""##? | | " " " """ """"## | | "" " # | | # " """# | | ## " "# | | ?## " "# | | ??##" "" | | ???#""" """""" " | | ??##" ######""" | | ??#"" ""##?????####""" | | ?##""" z """##?????????##""" | | ?#""" """##???????????#"""" | | ?#""" ""#?????????####"" | | ?#"" ########??# | | ?#""" ##aaa### | | ?#"" """ ! | | ?##"" !%% | | ??#"""" a %! a | | ??## @ | | ???#" " % """* | | ???#"""" %* ""## ##""" " " ""#"% | | ???#"" = ""#### ######""" """##"""""" | | ???#" % """"##??# #????###""""######### | | ???#""" """#??## ####???######???????? | | ???## ""##??#! "!#????????????????? | | ????#"" """##???#" !#????????????????? | | ????##""" ##????#" "#????????????????? | | ?????##"""" ##?????#!!""!"#????????????????? | | ??????### #??????########????????????????? | | ????????##### ##??????????????????????????????? | | ????????????## #???????????????????????????????? | | ?????????????# #???????????????????????????????? | | ?????????????# #???????????????????????????????? | | ?????????????# #???????????????????????????????? | | ???#####?????# #???????????????????????????????? | | ??#""""""????# #???????????????????????????????? | | ??#"""""""#??# #???????????????????????????????? | | ??#" """"#??# #???????????????????????????????? | | ??#"" """#??# #???????????????????????????????? | | ???"" ""???# #???????????????????????????????? | | #####"""###### ########????????????????????????? | | """"" """""" """""""#?""""???????????????????? | | """" "#"" ""#??????????????????? | +----------------------------------------------------+ Best States ------------- Heat Dissipation 72 Energy Generation 14 Energy Capacity 250 Matter Stores 300 Matter Capacity 300 Sight Range 16 Terrain Scan Range 16 Terrain Scan Density 10 Evasion (%) 63 Item Schematics ----------------- None Robot Schematics ------------------ None Fabricated ------------ Nothing Alien Tech Used ----------------- None Achievements -------------- This Is Interesting... Challenges ------------ None Game ------ Seed GreatOpticalLauncher Manual? 0 Play Time 00:47:58 Cumulative 35.3 hours Start 2022.07.27 @ 02:53:01 End 2022.07.27 @ 09:19:53 Sessions 2 Manual Loads 0 Difficulty Rogue Special Mode None Game No. 39 Rogue 39 Adventurer 0 Explorer 0 Win Type - Total 0 Types 0/0/0/0/0/0/0/0/0 Lore% 28 Gallery% 31 Achievement% 21 Wizard Run 0 Options --------- ASCII 0 Keyboard 0 Movement Mouse Keybinds 0 Fullscreen 1 Font 24/Smallcaps Map View 113x50 Tactical HUD 0 Map Filters NONE Filters NONE Steam 1 RUN: f3195590-2cf4-487e-93f8-d7ef18d820cc